[Event "Live Chess"]
[Site "Chess.com"]
[Date "2023.05.20"]
[Round "-"]
[White "Reggie016"]
[Black "boilerboy1"]
[Result "1-0"]
[WhiteElo "1091"]
[BlackElo "1056"]
[TimeControl "300"]
[EndTime "11:55:55 PDT"]
[Termination "Reggie016 won by resignation"]

1. e4 {[%clk 0:04:59.1]} 1... e5 {[%clk 0:04:57.1]} 2. Nc3 {[%clk 0:04:58.3]}
2... c6 {[%clk 0:04:54.5]} 3. f4 {[%clk 0:04:56.9]} 3... exf4 {[%clk 0:04:52.3]}
4. Nf3 {[%clk 0:04:56.1]} 4... Nf6 {[%clk 0:04:50.9]} 5. e5 {[%clk 0:04:54.5]}
5... Ng4 {[%clk 0:04:46]} 6. h3 {[%clk 0:04:52.7]} 6... Nh6 {[%clk 0:04:39.5]}
7. d4 {[%clk 0:04:51.8]} 7... g6 {[%clk 0:04:37.5]} 8. Bxf4 {[%clk 0:04:50.4]}
8... Bg7 {[%clk 0:04:35.3]} 9. Bd3 {[%clk 0:04:43.6]} 9... O-O {[%clk
0:04:32.1]} 10. O-O {[%clk 0:04:40.9]} 10... c5 {[%clk 0:04:26.8]} 11. dxc5
{[%clk 0:04:20.7]} 11... Nc6 {[%clk 0:04:24.8]} 12. Qd2 {[%clk 0:04:18.6]} 12...
Nf5 {[%clk 0:04:18.2]} 13. Bxf5 {[%clk 0:04:13.4]} 13... gxf5 {[%clk 0:04:15.7]}
14. Bh6 {[%clk 0:04:11.7]} 14... Bxe5 {[%clk 0:04:08.9]} 15. Nxe5 {[%clk
0:04:07.9]} 15... Nxe5 {[%clk 0:04:06.3]} 16. Rxf5 {[%clk 0:03:59.6]} 16... Ng6
{[%clk 0:04:03.6]} 17. Qd4 {[%clk 0:03:52.9]} 17... f6 {[%clk 0:03:59.4]} 18.
Bxf8 {[%clk 0:03:49.4]} 18... Qxf8 {[%clk 0:03:54.2]} 19. Rxf6 {[%clk
0:03:47.2]} 19... Qg7 {[%clk 0:03:47.4]} 20. Qd5+ {[%clk 0:03:31.7]} 20... Kh8
{[%clk 0:03:41.7]} 21. Raf1 {[%clk 0:03:30]} 21... d6 {[%clk 0:03:27.9]} 22.
Rxg6 {[%clk 0:03:18.4]} 22... hxg6 {[%clk 0:03:22.5]} 23. Rf4 {[%clk 0:03:11.9]}
23... dxc5 {[%clk 0:03:17.5]} 24. Rh4+ {[%clk 0:03:10.8]} 24... Qh7 {[%clk
0:03:10.5]} 25. Rxh7+ {[%clk 0:03:07.1]} 25... Kxh7 {[%clk 0:03:06.7]} 26. Qxc5
{[%clk 0:03:05.8]} 26... Bf5 {[%clk 0:03:03.6]} 27. g4 {[%clk 0:02:17.3]} 27...
Bxc2 {[%clk 0:02:49.7]} 28. Nd5 {[%clk 0:02:09.9]} 28... b6 {[%clk 0:02:37.4]}
29. Nf6+ {[%clk 0:02:02.9]} 29... Kg7 {[%clk 0:02:30.2]} 30. Qxc2 {[%clk
0:01:52.9]} 30... Kxf6 {[%clk 0:02:29]} 31. Qc3+ {[%clk 0:01:52.2]} 31... Kg5
{[%clk 0:02:25.2]} 32. Qe5+ {[%clk 0:01:49]} 32... Kh4 {[%clk 0:02:22.7]} 33.
Kg2 {[%clk 0:01:46.7]} 33... Rf8 {[%clk 0:02:15.3]} 34. Qg3+ {[%clk 0:01:37]}
34... Kg5 {[%clk 0:02:10.1]} 35. h4+ {[%clk 0:01:11]} 35... Kh6 {[%clk
0:02:06.1]} 36. g5+ {[%clk 0:01:09.6]} 36... Kg7 {[%clk 0:02:04.3]} 37. Qc7+
{[%clk 0:01:07.6]} 37... Rf7 {[%clk 0:02:02.3]} 38. Qe5+ {[%clk 0:01:04]} 38...
Kg8 {[%clk 0:01:58.2]} 39. Kg3 {[%clk 0:00:59.9]} 39... a6 {[%clk 0:01:55.1]}
40. Kg4 {[%clk 0:00:56.7]} 40... b5 {[%clk 0:01:49.4]} 41. h5 {[%clk 0:00:55.2]}
41... Rf5 {[%clk 0:01:46.8]} 42. Qe6+ {[%clk 0:00:51.4]} 42... Rf7 {[%clk
0:01:40.4]} 43. hxg6 {[%clk 0:00:50.1]} 1-0

[Event "Live Chess"]
[Site "Chess.com"]
[Date "2023.05.20"]
[Round "-"]
[White "ReceptiveCamel"]
[Black "tuppyglossop"]
[Result "0-1"]
[WhiteElo "626"]
[BlackElo "1593"]
[TimeControl "300"]
[EndTime "11:55:57 PDT"]
[Termination "tuppyglossop won by resignation"]

1. e4 {[%clk 0:04:56.9]} 1... e5 {[%clk 0:04:57.9]} 2. d4 {[%clk 0:04:54.4]}
2... exd4 {[%clk 0:04:56.6]} 3. Qxd4 {[%clk 0:04:52.4]} 3... Nc6 {[%clk
0:04:55.4]} 4. Qd1 {[%clk 0:04:50.3]} 4... d6 {[%clk 0:04:53.8]} 5. Bf4 {[%clk
0:04:48.2]} 5... Nf6 {[%clk 0:04:52.3]} 6. Bb5 {[%clk 0:04:46.4]} 6... Bd7
{[%clk 0:04:50.7]} 7. Nc3 {[%clk 0:04:43.2]} 7... a6 {[%clk 0:04:49.4]} 8. Bxc6
{[%clk 0:04:41.8]} 8... Bxc6 {[%clk 0:04:49.3]} 9. Nf3 {[%clk 0:04:40.2]} 9...
Be7 {[%clk 0:04:48]} 10. Qd3 {[%clk 0:04:37.5]} 10... O-O {[%clk 0:04:43.9]} 11.
O-O-O {[%clk 0:04:35.9]} 11... Nh5 {[%clk 0:04:37]} 12. h4 {[%clk 0:04:16.6]}
12... Nxf4 {[%clk 0:04:34.9]} 13. Qe3 {[%clk 0:04:09]} 13... Ne6 {[%clk
0:04:22.5]} 14. Nd5 {[%clk 0:03:11.7]} 14... Bxd5 {[%clk 0:04:14.6]} 15. exd5
{[%clk 0:03:09.8]} 15... Nc5 {[%clk 0:04:12]} 16. Ng5 {[%clk 0:02:49.8]} 16...
Bxg5 {[%clk 0:04:00.7]} 17. Qxg5 {[%clk 0:02:45.8]} 17... Qxg5+ {[%clk 0:03:59]}
18. hxg5 {[%clk 0:02:43.2]} 18... Ne4 {[%clk 0:03:53.5]} 19. f4 {[%clk
0:02:38.7]} 19... Nf2 {[%clk 0:03:50.8]} 20. Rdf1 {[%clk 0:02:36.5]} 20... Nxh1
{[%clk 0:03:49.2]} 21. Rxh1 {[%clk 0:02:34.9]} 21... Rae8 {[%clk 0:03:46.7]} 22.
Kd2 {[%clk 0:02:32.8]} 22... Re4 {[%clk 0:03:44.4]} 23. Kd3 {[%clk 0:02:31.2]}
23... Rxf4 {[%clk 0:03:43.2]} 24. g3 {[%clk 0:02:28.3]} 24... Rg4 {[%clk
0:03:41.2]} 25. Rh5 {[%clk 0:02:25.5]} 25... Rxg3+ {[%clk 0:03:39.7]} 26. Ke4
{[%clk 0:02:21.9]} 26... g6 {[%clk 0:03:38.1]} 27. Rh6 {[%clk 0:02:18.8]} 27...
Rxg5 {[%clk 0:03:35.6]} 28. Kf4 {[%clk 0:02:18]} 28... Rxd5 {[%clk 0:03:34.2]}
29. Ke4 {[%clk 0:02:16.9]} 29... Re5+ {[%clk 0:03:32.1]} 30. Kf4 {[%clk
0:02:15.2]} 30... Rfe8 {[%clk 0:03:30.5]} 31. Kg4 {[%clk 0:02:14.2]} 31... Re2
{[%clk 0:03:25.1]} 32. Kf4 {[%clk 0:02:13.2]} 32... Kg7 {[%clk 0:03:23.8]} 33.
Kf3 {[%clk 0:02:12.6]} 33... Kxh6 {[%clk 0:03:21.5]} 34. c4 {[%clk 0:02:11]}
34... Rxb2 {[%clk 0:03:19.8]} 35. a4 {[%clk 0:02:06.7]} 0-1

[Event "Live Chess"]
[Site "Chess.com"]
[Date "2023.05.20"]
[Round "-"]
[White "mightysmasher"]
[Black "NAZRIZ1977"]
[Result "1-0"]
[WhiteElo "2140"]
[BlackElo "2097"]
[TimeControl "300"]
[EndTime "11:56:00 PDT"]
[Termination "mightysmasher won by resignation"]

1. e4 {[%clk 0:04:58.3]} 1... c5 {[%clk 0:04:59.1]} 2. c3 {[%clk 0:04:57.2]}
2... d5 {[%clk 0:04:57.4]} 3. exd5 {[%clk 0:04:56]} 3... Nf6 {[%clk 0:04:57]} 4.
d4 {[%clk 0:04:54.4]} 4... cxd4 {[%clk 0:04:55.3]} 5. cxd4 {[%clk 0:04:53.5]}
5... Nxd5 {[%clk 0:04:54.2]} 6. Nf3 {[%clk 0:04:52.3]} 6... e6 {[%clk
0:04:53.5]} 7. Bc4 {[%clk 0:04:50.3]} 7... Be7 {[%clk 0:04:52.9]} 8. O-O {[%clk
0:04:48.8]} 8... O-O {[%clk 0:04:52.4]} 9. Bxd5 {[%clk 0:04:48.2]} 9... Qxd5
{[%clk 0:04:51.4]} 10. Nc3 {[%clk 0:04:47.7]} 10... Qd8 {[%clk 0:04:51]} 11. d5
{[%clk 0:04:45.2]} 11... b6 {[%clk 0:04:47.8]} 12. Bf4 {[%clk 0:04:42.6]} 12...
Bf6 {[%clk 0:04:44.1]} 13. Nb5 {[%clk 0:04:39.3]} 13... e5 {[%clk 0:04:34.2]}
14. Nxe5 {[%clk 0:04:34.5]} 14... a6 {[%clk 0:04:32.8]} 15. Nc3 {[%clk
0:04:27.1]} 15... Bb7 {[%clk 0:04:31.7]} 16. d6 {[%clk 0:04:19.6]} 16... Re8
{[%clk 0:04:27.3]} 17. d7 {[%clk 0:04:09]} 17... Rxe5 {[%clk 0:04:21.5]} 18.
Bxe5 {[%clk 0:04:07.4]} 18... Bxe5 {[%clk 0:04:21.4]} 19. Re1 {[%clk 0:04:03.7]}
19... Nxd7 {[%clk 0:04:11.8]} 20. Qd3 {[%clk 0:04:01.5]} 20... Qh4 {[%clk
0:03:51.1]} 21. h3 {[%clk 0:03:51.8]} 21... Nc5 {[%clk 0:03:37.9]} 22. Qf5
{[%clk 0:03:36.5]} 22... Qf4 {[%clk 0:03:30.8]} 23. Qxe5 {[%clk 0:03:32]} 1-0

[Event "Live Chess"]
[Site "Chess.com"]
[Date "2023.05.20"]
[Round "-"]
[White "maxwalden"]
[Black "Albul"]
[Result "0-1"]
[WhiteElo "1211"]
[BlackElo "2162"]
[TimeControl "300"]
[EndTime "11:56:03 PDT"]
[Termination "Albul won on time"]

1. d4 {[%clk 0:04:57.5]} 1... f5 {[%clk 0:04:58.5]} 2. c4 {[%clk 0:04:56.3]}
2... Nf6 {[%clk 0:04:57.9]} 3. Nc3 {[%clk 0:04:55.4]} 3... g6 {[%clk 0:04:57.3]}
4. Bf4 {[%clk 0:04:53.8]} 4... Bg7 {[%clk 0:04:56.7]} 5. e3 {[%clk 0:04:52.4]}
5... d6 {[%clk 0:04:55.8]} 6. Nf3 {[%clk 0:04:51.5]} 6... O-O {[%clk 0:04:54.7]}
7. Bd3 {[%clk 0:04:50.6]} 7... c6 {[%clk 0:04:51.4]} 8. O-O {[%clk 0:04:49.6]}
8... Qe8 {[%clk 0:04:48.3]} 9. a3 {[%clk 0:04:48.8]} 9... Nh5 {[%clk 0:04:47.1]}
10. Bg3 {[%clk 0:04:46.2]} 10... e5 {[%clk 0:04:42]} 11. dxe5 {[%clk 0:04:43.9]}
11... dxe5 {[%clk 0:04:41]} 12. Bc2 {[%clk 0:04:36.1]} 12... h6 {[%clk
0:04:34.3]} 13. b4 {[%clk 0:04:24.3]} 13... f4 {[%clk 0:04:05.8]} 14. exf4
{[%clk 0:04:21.6]} 14... exf4 {[%clk 0:04:04.9]} 15. Re1 {[%clk 0:03:44.5]}
15... Qf7 {[%clk 0:04:01.3]} 16. Bb3 {[%clk 0:03:38]} 16... fxg3 {[%clk
0:03:54.9]} 17. c5 {[%clk 0:03:35]} 17... gxf2+ {[%clk 0:03:49.5]} 18. Kxf2
{[%clk 0:03:32.5]} 18... Bxc3 {[%clk 0:03:47.8]} 19. Bxf7+ {[%clk 0:03:29.8]}
19... Rxf7 {[%clk 0:03:46.8]} 20. Re8+ {[%clk 0:03:26.6]} 20... Kh7 {[%clk
0:03:40.7]} 21. Rc1 {[%clk 0:03:21.2]} 21... Bd7 {[%clk 0:03:39.1]} 22. Rxb8
{[%clk 0:03:13]} 22... Rxb8 {[%clk 0:03:36.6]} 23. Rxc3 {[%clk 0:03:11.9]} 23...
Bg4 {[%clk 0:03:29.8]} 24. h3 {[%clk 0:03:06.8]} 24... Bxf3 {[%clk 0:03:20.8]}
25. Rxf3 {[%clk 0:03:04.5]} 25... Rbf8 {[%clk 0:03:19.4]} 26. Rxf7+ {[%clk
0:03:02.1]} 26... Rxf7+ {[%clk 0:03:18.5]} 27. Kg1 {[%clk 0:02:59]} 27... Nf4
{[%clk 0:03:13]} 28. Qf3 {[%clk 0:02:47.9]} 28... Kg7 {[%clk 0:03:10.9]} 29.
Qc3+ {[%clk 0:02:41.4]} 29... Kg8 {[%clk 0:03:06]} 30. Qc4 {[%clk 0:02:39.2]}
30... Nd5 {[%clk 0:03:02.6]} 31. g4 {[%clk 0:02:32.1]} 31... a6 {[%clk
0:02:57.7]} 32. a4 {[%clk 0:02:30.7]} 32... Nf4 {[%clk 0:02:46.4]} 33. h4 {[%clk
0:02:21.7]} 33... Nd5 {[%clk 0:02:29.7]} 34. g5 {[%clk 0:02:17.8]} 34... hxg5
{[%clk 0:02:25.5]} 35. hxg5 {[%clk 0:02:16.9]} 35... Rf4 {[%clk 0:02:24.8]} 36.
Qd3 {[%clk 0:01:59.8]} 36... Rg4+ {[%clk 0:02:20.4]} 37. Kf2 {[%clk 0:01:56.4]}
37... Rxg5 {[%clk 0:02:18.2]} 38. b5 {[%clk 0:01:52.8]} 38... axb5 {[%clk
0:02:16.4]} 39. axb5 {[%clk 0:01:52.1]} 39... Rf5+ {[%clk 0:02:15.7]} 40. Kg3
{[%clk 0:01:46.9]} 40... Kf7 {[%clk 0:02:10.8]} 41. bxc6 {[%clk 0:01:44]} 41...
bxc6 {[%clk 0:02:09.2]} 42. Qa6 {[%clk 0:01:37.7]} 42... Rf6 {[%clk 0:02:08.2]}
43. Qb7+ {[%clk 0:01:35.6]} 43... Ne7 {[%clk 0:02:06.7]} 44. Qb3+ {[%clk
0:01:27.7]} 44... Kg7 {[%clk 0:02:05]} 45. Qb7 {[%clk 0:01:23.4]} 45... Re6
{[%clk 0:01:59.4]} 46. Qb2+ {[%clk 0:01:18.4]} 46... Kf7 {[%clk 0:01:57]} 47.
Qf2+ {[%clk 0:01:12.9]} 47... Nf5+ {[%clk 0:01:54.8]} 48. Kg4 {[%clk 0:01:08.6]}
48... Re5 {[%clk 0:01:41.9]} 49. Qa2+ {[%clk 0:01:03.1]} 49... Rd5 {[%clk
0:01:39.4]} 50. Qa7+ {[%clk 0:01:00.9]} 50... Ne7 {[%clk 0:01:38.3]} 51. Qa2
{[%clk 0:00:48.5]} 51... Ke6 {[%clk 0:01:33.3]} 52. Qe2+ {[%clk 0:00:46.1]}
52... Kd7 {[%clk 0:01:30.8]} 53. Kf4 {[%clk 0:00:31.5]} 53... Rxc5 {[%clk
0:01:21.1]} 54. Qg4+ {[%clk 0:00:30.2]} 54... Rf5+ {[%clk 0:01:19.4]} 55. Ke4
{[%clk 0:00:25.1]} 55... Nd5 {[%clk 0:01:13.1]} 56. Qxg6 {[%clk 0:00:20.7]}
56... Rf6 {[%clk 0:01:06.8]} 57. Qg4+ {[%clk 0:00:18.9]} 57... Kd6 {[%clk
0:01:03.8]} 58. Qd1 {[%clk 0:00:15]} 58... Rf4+ {[%clk 0:01:01.1]} 59. Kd3
{[%clk 0:00:10.8]} 59... Rf3+ {[%clk 0:00:57.6]} 60. Kc4 {[%clk 0:00:09.6]}
60... Rf4+ {[%clk 0:00:45.7]} 61. Kb3 {[%clk 0:00:06.7]} 61... c5 {[%clk
0:00:39.6]} 62. Qh5 {[%clk 0:00:02.5]} 62... Rb4+ {[%clk 0:00:37]} 63. Kc2
{[%clk 0:00:00.8]} 63... Ne3+ {[%clk 0:00:34.5]} 0-1

[Event "Live Chess"]
[Site "Chess.com"]
[Date "2023.05.20"]
[Round "-"]
[White "BillythekidFellowes"]
[Black "Salpingidis"]
[Result "0-1"]
[WhiteElo "2027"]
[BlackElo "2287"]
[TimeControl "300"]
[EndTime "11:56:06 PDT"]
[Termination "Salpingidis won by resignation"]

1. Nf3 {[%clk 0:04:57.1]} 1... e6 {[%clk 0:04:57.9]} 2. c4 {[%clk 0:04:55.1]}
2... d5 {[%clk 0:04:57.1]} 3. d4 {[%clk 0:04:53.6]} 3... Nf6 {[%clk 0:04:55.9]}
4. Nc3 {[%clk 0:04:52.7]} 4... Be7 {[%clk 0:04:54.5]} 5. Bg5 {[%clk 0:04:50.4]}
5... O-O {[%clk 0:04:53.9]} 6. e3 {[%clk 0:04:48]} 6... h6 {[%clk 0:04:52.5]} 7.
Bxf6 {[%clk 0:04:47.1]} 7... Bxf6 {[%clk 0:04:52.2]} 8. cxd5 {[%clk 0:04:46.6]}
8... exd5 {[%clk 0:04:50.8]} 9. Bd3 {[%clk 0:04:46]} 9... c6 {[%clk 0:04:49.6]}
10. O-O {[%clk 0:04:44.4]} 10... Bg4 {[%clk 0:04:44.7]} 11. h3 {[%clk
0:04:42.6]} 11... Bh5 {[%clk 0:04:43.5]} 12. Be2 {[%clk 0:04:40.9]} 12... Nd7
{[%clk 0:04:41.7]} 13. Nd2 {[%clk 0:04:36.6]} 13... Bxe2 {[%clk 0:04:39.9]} 14.
Nxe2 {[%clk 0:04:34.9]} 14... c5 {[%clk 0:04:35.6]} 15. dxc5 {[%clk 0:04:31.9]}
15... Nxc5 {[%clk 0:04:35.5]} 16. Nf4 {[%clk 0:04:27.3]} 16... d4 {[%clk
0:04:32.1]} 17. Nc4 {[%clk 0:04:19.6]} 17... dxe3 {[%clk 0:04:30.2]} 18. Nxe3
{[%clk 0:04:16]} 18... Qxd1 {[%clk 0:04:25]} 19. Rfxd1 {[%clk 0:04:15]} 19...
Bxb2 {[%clk 0:04:23.5]} 20. Rab1 {[%clk 0:04:14]} 20... Be5 {[%clk 0:04:22.3]}
21. Ne2 {[%clk 0:04:08.3]} 21... b6 {[%clk 0:04:19.7]} 22. Rd5 {[%clk
0:04:05.5]} 22... Bf6 {[%clk 0:04:17.8]} 23. Ng4 {[%clk 0:03:54.2]} 23... Be7
{[%clk 0:04:11.5]} 24. Ng3 {[%clk 0:03:49]} 24... Rad8 {[%clk 0:04:08.9]} 25.
Nf5 {[%clk 0:03:47.2]} 25... Bg5 {[%clk 0:04:02.6]} 26. Rbd1 {[%clk 0:03:42.2]}
26... Rxd5 {[%clk 0:03:59.6]} 27. Rxd5 {[%clk 0:03:42.1]} 27... Rd8 {[%clk
0:03:58.7]} 28. Rxd8+ {[%clk 0:03:33.7]} 28... Bxd8 {[%clk 0:03:58.6]} 29. Nd6
{[%clk 0:03:32.1]} 29... Kf8 {[%clk 0:03:52.1]} 30. Ne3 {[%clk 0:03:23.2]} 30...
Bc7 {[%clk 0:03:47.9]} 31. Nb5 {[%clk 0:03:21.6]} 31... Bb8 {[%clk 0:03:46.8]}
32. Nd5 {[%clk 0:03:18.7]} 32... f6 {[%clk 0:03:40.7]} 33. Nd4 {[%clk
0:03:17.5]} 33... Kf7 {[%clk 0:03:22.2]} 34. Nc6 {[%clk 0:03:16]} 34... Nd7
{[%clk 0:03:21.6]} 35. Kf1 {[%clk 0:02:59.9]} 35... Ke6 {[%clk 0:03:20.1]} 36.
Nc3 {[%clk 0:02:55.7]} 36... Kd6 {[%clk 0:03:15.5]} 37. Nd4 {[%clk 0:02:53.9]}
37... g6 {[%clk 0:02:58.3]} 38. f3 {[%clk 0:02:49.9]} 38... Kc5 {[%clk
0:02:55.9]} 39. Nb3+ {[%clk 0:02:40.4]} 39... Kc4 {[%clk 0:02:53.4]} 40. Ne4
{[%clk 0:02:37.4]} 40... f5 {[%clk 0:02:52.9]} 41. Ned2+ {[%clk 0:02:35.2]}
41... Kd3 {[%clk 0:02:50.4]} 42. Ke1 {[%clk 0:02:30.7]} 42... Nc5 {[%clk
0:02:41.4]} 43. Kd1 {[%clk 0:01:48.6]} 43... Nxb3 {[%clk 0:02:35.7]} 44. axb3
{[%clk 0:01:48.5]} 44... Bf4 {[%clk 0:02:32.5]} 45. Nc4 {[%clk 0:01:45.3]} 45...
Kc3 {[%clk 0:02:30.5]} 46. h4 {[%clk 0:01:37.2]} 46... Kxb3 {[%clk 0:02:29.2]}
47. Nd2+ {[%clk 0:01:34.2]} 47... Bxd2 {[%clk 0:02:27.3]} 48. Kxd2 {[%clk
0:01:34.1]} 0-1

[Event "Live Chess"]
[Site "Chess.com"]
[Date "2023.05.20"]
[Round "-"]
[White "omisoc"]
[Black "LiamBellwood"]
[Result "1-0"]
[WhiteElo "2212"]
[BlackElo "2083"]
[TimeControl "300"]
[EndTime "11:56:06 PDT"]
[Termination "omisoc won by resignation"]

1. b3 {[%clk 0:04:58]} 1... e6 {[%clk 0:04:59.9]} 2. Bb2 {[%clk 0:04:56.4]} 2...
f5 {[%clk 0:04:59.5]} 3. e3 {[%clk 0:04:55.8]} 3... Nf6 {[%clk 0:04:59.2]} 4.
Nf3 {[%clk 0:04:54.7]} 4... Be7 {[%clk 0:04:56.7]} 5. d4 {[%clk 0:04:53.6]} 5...
O-O {[%clk 0:04:56.2]} 6. Nbd2 {[%clk 0:04:51.6]} 6... b6 {[%clk 0:04:55.6]} 7.
c4 {[%clk 0:04:46.5]} 7... Bb7 {[%clk 0:04:55.5]} 8. Be2 {[%clk 0:04:45.2]} 8...
d6 {[%clk 0:04:54.1]} 9. O-O {[%clk 0:04:41]} 9... Ne4 {[%clk 0:04:52.8]} 10.
Nxe4 {[%clk 0:04:37.5]} 10... fxe4 {[%clk 0:04:50]} 11. Nd2 {[%clk 0:04:36.2]}
11... d5 {[%clk 0:04:49.7]} 12. Bg4 {[%clk 0:04:33.8]} 12... Bc8 {[%clk
0:04:32.7]} 13. f3 {[%clk 0:04:29.5]} 13... Bg5 {[%clk 0:04:21.1]} 14. Qe2
{[%clk 0:04:23.3]} 14... exf3 {[%clk 0:04:08.2]} 15. Nxf3 {[%clk 0:04:23.2]}
15... Bf6 {[%clk 0:03:56.8]} 16. e4 {[%clk 0:04:19.2]} 16... Nc6 {[%clk
0:03:46.6]} 17. exd5 {[%clk 0:04:09.8]} 17... exd5 {[%clk 0:03:42.6]} 18. Be6+
{[%clk 0:04:08.8]} 18... Bxe6 {[%clk 0:03:34]} 19. Qxe6+ {[%clk 0:04:06.5]}
19... Kh8 {[%clk 0:03:33.6]} 20. Qxc6 {[%clk 0:04:04.8]} 1-0

[Event "Live Chess"]
[Site "Chess.com"]
[Date "2023.05.20"]
[Round "-"]
[White "AdamOwls"]
[Black "KGreenGator"]
[Result "0-1"]
[WhiteElo "1918"]
[BlackElo "1773"]
[TimeControl "300"]
[EndTime "11:56:07 PDT"]
[Termination "KGreenGator won by resignation"]

1. e4 {[%clk 0:04:48.9]} 1... c5 {[%clk 0:04:59]} 2. d4 {[%clk 0:04:46.8]} 2...
cxd4 {[%clk 0:04:57.7]} 3. c3 {[%clk 0:04:46.5]} 3... dxc3 {[%clk 0:04:56.3]} 4.
Nxc3 {[%clk 0:04:46.4]} 4... e6 {[%clk 0:04:55.1]} 5. Nf3 {[%clk 0:04:45.3]}
5... Bc5 {[%clk 0:04:53.8]} 6. Bc4 {[%clk 0:04:44.2]} 6... Nf6 {[%clk 0:04:52]}
7. O-O {[%clk 0:04:42]} 7... O-O {[%clk 0:04:50.3]} 8. Qe2 {[%clk 0:04:41]} 8...
Nc6 {[%clk 0:04:48.5]} 9. Rd1 {[%clk 0:04:39.4]} 9... a6 {[%clk 0:04:41.3]} 10.
Bg5 {[%clk 0:04:37.9]} 10... e5 {[%clk 0:04:38.1]} 11. Rac1 {[%clk 0:04:33]}
11... Re8 {[%clk 0:04:36]} 12. Nd5 {[%clk 0:04:26.1]} 12... Be7 {[%clk
0:04:30.1]} 13. Nxe7+ {[%clk 0:04:16.5]} 13... Qxe7 {[%clk 0:04:28.8]} 14. a3
{[%clk 0:04:06]} 14... d6 {[%clk 0:04:28]} 15. Bb3 {[%clk 0:04:03.8]} 15... h6
{[%clk 0:04:25.3]} 16. Bh4 {[%clk 0:04:02.1]} 16... Be6 {[%clk 0:04:22]} 17. Qe3
{[%clk 0:03:34.8]} 17... Bxb3 {[%clk 0:04:19.6]} 18. Qxb3 {[%clk 0:03:33.4]}
18... Rab8 {[%clk 0:04:16.4]} 19. Nd2 {[%clk 0:03:18.3]} 19... Red8 {[%clk
0:04:12.1]} 20. f3 {[%clk 0:03:16.3]} 20... Nd4 {[%clk 0:04:09]} 21. Qd3 {[%clk
0:03:08.7]} 21... Qe6 {[%clk 0:04:01.6]} 22. Bf2 {[%clk 0:03:05.5]} 22... Nc6
{[%clk 0:03:58.4]} 23. Nc4 {[%clk 0:02:59.2]} 23... d5 {[%clk 0:03:52]} 24. exd5
{[%clk 0:02:49]} 24... Nxd5 {[%clk 0:03:50.2]} 25. Qe4 {[%clk 0:02:34.4]} 25...
f5 {[%clk 0:03:44.3]} 26. Qe2 {[%clk 0:02:22.3]} 26... Nf4 {[%clk 0:03:42.9]}
27. Qc2 {[%clk 0:02:14.9]} 27... Rxd1+ {[%clk 0:03:39.1]} 28. Rxd1 {[%clk
0:02:13.4]} 28... Rd8 {[%clk 0:03:38.7]} 29. Rxd8+ {[%clk 0:02:02]} 29... Nxd8
{[%clk 0:03:37.6]} 30. Ne3 {[%clk 0:02:01.5]} 30... g6 {[%clk 0:03:32.3]} 31.
Qc7 {[%clk 0:01:59.3]} 31... Qf6 {[%clk 0:03:19.1]} 32. Nc4 {[%clk 0:01:50]}
32... Nfe6 {[%clk 0:03:01.9]} 33. Qd7 {[%clk 0:01:44.5]} 33... b5 {[%clk
0:02:56.8]} 34. Nd6 {[%clk 0:01:38.3]} 34... Qg7 {[%clk 0:02:50.6]} 35. Qc8
{[%clk 0:01:32.2]} 35... Qc7 {[%clk 0:02:37.1]} 36. Qxc7 {[%clk 0:01:19.7]}
36... Nxc7 {[%clk 0:02:35.5]} 37. Bb6 {[%clk 0:01:19.3]} 37... Nde6 {[%clk
0:02:33.1]} 38. Kf2 {[%clk 0:01:14.4]} 38... Nd5 {[%clk 0:02:29.7]} 39. Ba5
{[%clk 0:01:11.7]} 39... Nef4 {[%clk 0:02:24.8]} 40. b3 {[%clk 0:00:57.7]} 40...
Nd3+ {[%clk 0:02:22.5]} 41. Ke2 {[%clk 0:00:52.8]} 41... Nc1+ {[%clk 0:02:21.4]}
42. Kf2 {[%clk 0:00:49]} 42... Nxb3 {[%clk 0:02:20.8]} 43. Bd8 {[%clk
0:00:43.6]} 43... Nd4 {[%clk 0:02:12.1]} 44. g4 {[%clk 0:00:42.1]} 44... f4
{[%clk 0:02:09]} 45. Ne4 {[%clk 0:00:39.9]} 45... Kf7 {[%clk 0:02:04]} 46. h4
{[%clk 0:00:35.3]} 46... Ke6 {[%clk 0:02:02.4]} 47. g5 {[%clk 0:00:32.4]} 47...
h5 {[%clk 0:02:00.7]} 48. Nf6 {[%clk 0:00:24.9]} 48... Nxf6 {[%clk 0:01:58.7]}
49. Bxf6 {[%clk 0:00:24.8]} 49... Nf5 {[%clk 0:01:55.5]} 50. Bd8 {[%clk
0:00:21.3]} 50... Nxh4 {[%clk 0:01:54]} 0-1

[Event "Live Chess"]
[Site "Chess.com"]
[Date "2023.05.20"]
[Round "-"]
[White "profpirate4"]
[Black "alanmike75"]
[Result "0-1"]
[WhiteElo "1071"]
[BlackElo "1509"]
[TimeControl "300"]
[EndTime "11:56:10 PDT"]
[Termination "alanmike75 won by resignation"]

1. e4 {[%clk 0:04:58.5]} 1... e5 {[%clk 0:04:58.9]} 2. f4 {[%clk 0:04:57.7]}
2... exf4 {[%clk 0:04:57.5]} 3. Nf3 {[%clk 0:04:56.7]} 3... Nf6 {[%clk
0:04:55.9]} 4. Nc3 {[%clk 0:04:51.9]} 4... d5 {[%clk 0:04:54.5]} 5. e5 {[%clk
0:04:50.6]} 5... Ne4 {[%clk 0:04:53.3]} 6. d3 {[%clk 0:04:38.5]} 6... Nxc3
{[%clk 0:04:51.8]} 7. bxc3 {[%clk 0:04:37.3]} 7... g5 {[%clk 0:04:50.6]} 8. d4
{[%clk 0:04:34.5]} 8... Be6 {[%clk 0:04:47.2]} 9. Bd3 {[%clk 0:04:30.3]} 9... h6
{[%clk 0:04:45]} 10. Rb1 {[%clk 0:04:19.6]} 10... b6 {[%clk 0:04:42.7]} 11. O-O
{[%clk 0:04:07.7]} 11... c6 {[%clk 0:04:38.5]} 12. a4 {[%clk 0:04:03.9]} 12...
Nd7 {[%clk 0:04:34.4]} 13. a5 {[%clk 0:04:01]} 13... b5 {[%clk 0:04:29.2]} 14.
Rf2 {[%clk 0:03:50.3]} 14... Qxa5 {[%clk 0:04:23.9]} 15. Bd2 {[%clk 0:03:46.7]}
15... Qc7 {[%clk 0:04:21.7]} 16. Ra1 {[%clk 0:03:43.4]} 16... a5 {[%clk
0:04:17.4]} 17. Be1 {[%clk 0:03:37.1]} 17... Be7 {[%clk 0:04:15]} 18. Nd2 {[%clk
0:03:35.5]} 18... O-O {[%clk 0:04:11.8]} 19. Qh5 {[%clk 0:03:28.3]} 19... Kg7
{[%clk 0:04:09.2]} 20. h4 {[%clk 0:03:02.9]} 20... Rh8 {[%clk 0:04:07]} 21. Qe2
{[%clk 0:02:41.6]} 21... a4 {[%clk 0:03:58.8]} 22. Nf3 {[%clk 0:02:34.4]} 22...
Rab8 {[%clk 0:03:29.4]} 23. Bd2 {[%clk 0:02:28.2]} 23... Nb6 {[%clk 0:03:00.2]}
24. g3 {[%clk 0:02:16.7]} 24... g4 {[%clk 0:02:52.1]} 25. Nh2 {[%clk 0:01:58]}
25... fxg3 {[%clk 0:02:42.5]} 26. Rg2 {[%clk 0:01:36.4]} 26... gxh2+ {[%clk
0:02:40.4]} 27. Kxh2 {[%clk 0:01:35.4]} 27... h5 {[%clk 0:02:38.8]} 28. Rag1
{[%clk 0:01:29.1]} 28... Nc4 {[%clk 0:02:32.6]} 29. Rxg4+ {[%clk 0:01:25.4]}
29... hxg4 {[%clk 0:02:30.8]} 30. Rxg4+ {[%clk 0:01:14.3]} 30... Bxg4 {[%clk
0:02:29.1]} 31. Qxg4+ {[%clk 0:01:13.6]} 31... Kf8 {[%clk 0:02:27.6]} 32. Bf4
{[%clk 0:01:01.8]} 32... Rxh4+ {[%clk 0:02:22.4]} 33. Qxh4 {[%clk 0:01:00.3]}
33... Bxh4 {[%clk 0:02:21.1]} 34. Kh3 {[%clk 0:00:59.2]} 34... Qe7 {[%clk
0:02:11.1]} 35. e6 {[%clk 0:00:55.3]} 35... Re8 {[%clk 0:02:05]} 36. Bf5 {[%clk
0:00:52.6]} 36... fxe6 {[%clk 0:01:53.5]} 37. Bh6+ {[%clk 0:00:51.2]} 37... Kg8
{[%clk 0:01:49.8]} 38. Kg4 {[%clk 0:00:49.3]} 38... exf5+ {[%clk 0:01:46]} 0-1